[Event "Titled Tuesday Blitz May 9 Early 2023"]
[White "Tasev, Dejan"]
[Black "Staudenhocker43"]
[WhiteFideId "936618"]
[WhiteElo "2244"]
[BlackElo "2522"]
[Result "0-1"]
[Round "08"]
[TimeControl "180+2"]
[Date "2023.05.09"]
[WhiteClock "0:01:13"]
[BlackClock "0:01:58"]

1. e4 {[%clk 0:03:00]}  c6 {[%clk 0:03:00]} 2. d4 {[%clk 0:03:00]}  d5 {[%clk 0:03:01]} 3. Nc3 {[%clk 0:03:01]}  dxe4 {[%clk 0:03:01]} 4. Nxe4 {[%clk 0:03:00]}  Nf6 {[%clk 0:03:01]} 5. Nxf6+ {[%clk 0:03:01]}  exf6 {[%clk 0:03:02]} 6. c3 {[%clk 0:03:02]}  Bd6 {[%clk 0:03:03]} 7. Bd3 {[%clk 0:03:01]}  O-O {[%clk 0:03:03]} 8. Qc2 {[%clk 0:03:01]}  Re8+ {[%clk 0:03:03]} 9. Ne2 {[%clk 0:03:02]}  h5 {[%clk 0:03:04]} 10. h3 {[%clk 0:03:02]}  Nd7 {[%clk 0:03:03]} 11. O-O {[%clk 0:03:02]}  Nf8 {[%clk 0:03:02]} 12. Bd2 {[%clk 0:03:01]}  h4 {[%clk 0:02:57]} 13. Rae1 {[%clk 0:03:00]}  Be6 {[%clk 0:02:56]} 14. f4 {[%clk 0:02:59]}  b5 {[%clk 0:02:37]} 15. b3 {[%clk 0:02:56]}  Bc7 {[%clk 0:02:25]} 16. c4 {[%clk 0:02:48]}  bxc4 {[%clk 0:02:24]} 17. bxc4 {[%clk 0:02:48]}  Qd6 {[%clk 0:02:23]} 18. Rb1 {[%clk 0:02:10]}  Rab8 {[%clk 0:02:19]} 19. Qa4 {[%clk 0:02:05]}  Rxb1 {[%clk 0:02:06]} 20. Rxb1 {[%clk 0:02:03]}  Bf5 {[%clk 0:02:03]} 21. Qc2 {[%clk 0:01:43]}  Rxe2 {[%clk 0:02:00]} 22. Bxf5 {[%clk 0:01:35]}  Qxd4+ {[%clk 0:02:00]} 23. Kh1 {[%clk 0:01:13]}  Rxd2 {[%clk 0:01:58]} 0-1


[Site "https://www.chess.com"]

[Event "Titled Tuesday Blitz May 9 Early 2023"]
[White "Bacrot, Etienne"]
[Black "Weishaeutel, Moritz"]
[WhiteFideId "605506"]
[BlackFideId "12967300"]
[WhiteElo "2672"]
[BlackElo "2301"]
[Result "1-0"]
[Round "08"]
[TimeControl "180+2"]
[Date "2023.05.09"]
[WhiteClock "0:01:37"]
[BlackClock "0:00:04"]

1. e4 {[%clk 0:03:00]}  e5 {[%clk 0:03:00]} 2. Nf3 {[%clk 0:03:00]}  Nf6 {[%clk 0:03:01]} 3. Nc3 {[%clk 0:02:59]}  Nc6 {[%clk 0:03:00]} 4. Bb5 {[%clk 0:02:58]}  Nd4 {[%clk 0:03:00]} 5. Nxd4 {[%clk 0:02:57]}  exd4 {[%clk 0:03:00]} 6. e5 {[%clk 0:02:58]}  dxc3 {[%clk 0:02:57]} 7. exf6 {[%clk 0:02:58]}  Qxf6 {[%clk 0:02:57]} 8. dxc3 {[%clk 0:02:58]}  Bc5 {[%clk 0:02:47]} 9. Qe2+ {[%clk 0:02:55]}  Qe7 {[%clk 0:02:43]} 10. Bf4 {[%clk 0:02:51]}  c6 {[%clk 0:02:38]} 11. Bd3 {[%clk 0:02:49]}  d5 {[%clk 0:02:31]} 12. b4 {[%clk 0:02:39]}  Qxe2+ {[%clk 0:02:22]} 13. Kxe2 {[%clk 0:02:40]}  Be7 {[%clk 0:02:23]} 14. a4 {[%clk 0:02:36]}  Bf6 {[%clk 0:02:21]} 15. Kd2 {[%clk 0:02:36]}  Be6 {[%clk 0:02:17]} 16. a5 {[%clk 0:02:30]}  a6 {[%clk 0:02:13]} 17. h4 {[%clk 0:02:24]}  Kd7 {[%clk 0:02:10]} 18. Bg5 {[%clk 0:02:22]}  Be5 {[%clk 0:02:04]} 19. f4 {[%clk 0:02:21]}  h6 {[%clk 0:01:40]} 20. fxe5 {[%clk 0:02:20]}  hxg5 {[%clk 0:01:39]} 21. hxg5 {[%clk 0:02:20]}  g6 {[%clk 0:01:31]} 22. Ke3 {[%clk 0:02:18]}  Rac8 {[%clk 0:00:48]} 23. Kd4 {[%clk 0:02:03]}  Bg4 {[%clk 0:00:41]} 24. Rh6 {[%clk 0:01:55]}  Rxh6 {[%clk 0:00:38]} 25. gxh6 {[%clk 0:01:54]}  Rh8 {[%clk 0:00:39]} 26. Rh1 {[%clk 0:01:53]}  Ke6 {[%clk 0:00:17]} 27. Rh4 {[%clk 0:01:52]}  Bf5 {[%clk 0:00:17]} 28. h7 {[%clk 0:01:40]}  f6 {[%clk 0:00:11]} 29. exf6 {[%clk 0:01:38]}  Kxf6 {[%clk 0:00:12]} 30. Bxf5 {[%clk 0:01:37]}  gxf5 {[%clk 0:00:12]} 31. Kc5 {[%clk 0:01:37]}  Kg5 {[%clk 0:00:10]} 32. Rh3 {[%clk 0:01:37]}  Kg6 {[%clk 0:00:02]} 33. Kb6 {[%clk 0:01:37]}  Rxh7 {[%clk 0:00:02]} 34. Rxh7 {[%clk 0:01:37]}  Kxh7 {[%clk 0:00:03]} 35. Kxb7 {[%clk 0:01:37]}  Kg6 {[%clk 0:00:03]} 36. Kxa6 {[%clk 0:01:37]}  Kg5 {[%clk 0:00:04]} 37. Kb6 {[%clk 0:01:37]}  Kg4 {[%clk 0:00:05]} 38. a6 {[%clk 0:01:37]}  d4 {[%clk 0:00:05]} 39. cxd4 {[%clk 0:01:37]}  f4 {[%clk 0:00:03]} 40. a7 {[%clk 0:01:37]}  f3 {[%clk 0:00:04]} 41. gxf3+ {[%clk 0:01:37]} 1-0


[Site "https://www.chess.com"]

[Event "Titled Tuesday Blitz May 9 Early 2023"]
[White "Jaskolka, Tomasz"]
[Black "Sahib Singh"]
[WhiteFideId "1170791"]
[BlackFideId "25618342"]
[WhiteElo "2155"]
[BlackElo "1934"]
[Result "0-1"]
[Round "08"]
[TimeControl "180+2"]
[Date "2023.05.09"]
[WhiteClock "0:00:09"]
[BlackClock "0:01:06"]

1. d4 {[%clk 0:03:00]}  d5 {[%clk 0:02:57]} 2. Nc3 {[%clk 0:03:00]}  e6 {[%clk 0:02:58]} 3. Bf4 {[%clk 0:03:00]}  Nf6 {[%clk 0:02:54]} 4. e3 {[%clk 0:03:00]}  Bd6 {[%clk 0:02:54]} 5. Nf3 {[%clk 0:02:58]}  Bxf4 {[%clk 0:02:52]} 6. exf4 {[%clk 0:02:59]}  c5 {[%clk 0:02:53]} 7. dxc5 {[%clk 0:02:58]}  Qc7 {[%clk 0:02:52]} 8. Qd4 {[%clk 0:02:55]}  a6 {[%clk 0:02:52]} 9. Ne5 {[%clk 0:02:54]}  O-O {[%clk 0:02:46]} 10. Bd3 {[%clk 0:02:40]}  Nfd7 {[%clk 0:02:45]} 11. Na4 {[%clk 0:02:39]}  Nxe5 {[%clk 0:02:27]} 12. fxe5 {[%clk 0:02:34]}  Nc6 {[%clk 0:02:27]} 13. Qh4 {[%clk 0:02:26]}  Qxe5+ {[%clk 0:02:22]} 14. Kf1 {[%clk 0:02:26]}  g6 {[%clk 0:02:20]} 15. Re1 {[%clk 0:02:26]}  Qg7 {[%clk 0:02:13]} 16. c3 {[%clk 0:02:23]}  e5 {[%clk 0:02:12]} 17. Nb6 {[%clk 0:02:22]}  Be6 {[%clk 0:02:10]} 18. Nxa8 {[%clk 0:02:21]}  Rxa8 {[%clk 0:02:10]} 19. f3 {[%clk 0:02:11]}  f5 {[%clk 0:02:09]} 20. Bc2 {[%clk 0:02:04]}  d4 {[%clk 0:01:51]} 21. cxd4 {[%clk 0:02:01]}  Nxd4 {[%clk 0:01:48]} 22. Bd3 {[%clk 0:01:58]}  Rc8 {[%clk 0:01:45]} 23. Kf2 {[%clk 0:01:55]}  Rxc5 {[%clk 0:01:37]} 24. Rc1 {[%clk 0:01:55]}  Qc7 {[%clk 0:01:37]} 25. Qg5 {[%clk 0:01:27]}  f4 {[%clk 0:01:32]} 26. Bxg6 {[%clk 0:01:02]}  hxg6 {[%clk 0:01:13]} 27. Qxg6+ {[%clk 0:01:02]}  Kf8 {[%clk 0:01:11]} 28. Qh6+ {[%clk 0:00:46]}  Ke7 {[%clk 0:01:08]} 29. Qg7+ {[%clk 0:00:46]}  Bf7 {[%clk 0:01:05]} 30. Qg5+ {[%clk 0:00:28]}  Ke8 {[%clk 0:01:04]} 31. Rxc5 {[%clk 0:00:12]}  Qxc5 {[%clk 0:01:05]} 32. Ke1 {[%clk 0:00:07]}  Qc1+ {[%clk 0:01:04]} 33. Kf2 {[%clk 0:00:08]}  Qd2+ {[%clk 0:01:05]} 34. Kf1 {[%clk 0:00:09]}  Qe2+ {[%clk 0:01:05]} 35. Kg1 {[%clk 0:00:09]}  Qe1# {[%clk 0:01:06]} 0-1


[Site "https://www.chess.com"]

[Event "Titled Tuesday Blitz May 9 Early 2023"]
[White "Sethuraman, S.P."]
[Black "Rom, Jasper"]
[WhiteFideId "5021596"]
[BlackFideId "2023733"]
[WhiteElo "2543"]
[BlackElo "2233"]
[Result "1-0"]
[Round "08"]
[TimeControl "180+2"]
[Date "2023.05.09"]
[WhiteClock "0:02:10"]
[BlackClock "0:00:00"]

1. c4 {[%clk 0:03:00]}  e6 {[%clk 0:02:58]} 2. g3 {[%clk 0:03:00]}  d5 {[%clk 0:02:58]} 3. Bg2 {[%clk 0:03:01]}  Nf6 {[%clk 0:02:58]} 4. Nf3 {[%clk 0:03:01]}  Be7 {[%clk 0:02:56]} 5. O-O {[%clk 0:03:00]}  O-O {[%clk 0:02:57]} 6. b3 {[%clk 0:03:01]}  b6 {[%clk 0:02:53]} 7. Bb2 {[%clk 0:03:00]}  Bb7 {[%clk 0:02:53]} 8. d4 {[%clk 0:03:01]}  Na6 {[%clk 0:02:52]} 9. cxd5 {[%clk 0:02:58]}  Bxd5 {[%clk 0:02:40]} 10. Nc3 {[%clk 0:02:57]}  Bb7 {[%clk 0:02:40]} 11. Rc1 {[%clk 0:02:48]}  c5 {[%clk 0:02:39]} 12. e3 {[%clk 0:02:30]}  cxd4 {[%clk 0:02:22]} 13. Nxd4 {[%clk 0:02:29]}  Bxg2 {[%clk 0:02:21]} 14. Kxg2 {[%clk 0:02:30]}  Qd7 {[%clk 0:02:08]} 15. Qf3 {[%clk 0:02:26]}  Rac8 {[%clk 0:01:57]} 16. Rfd1 {[%clk 0:02:26]}  Nc5 {[%clk 0:00:30]} 17. b4 {[%clk 0:02:23]}  Na6 {[%clk 0:00:12]} 18. a3 {[%clk 0:02:21]}  Qe8 {[%clk 0:00:08]} 19. Ncb5 {[%clk 0:02:18]}  Rxc1 {[%clk 0:00:04]} 20. Rxc1 {[%clk 0:02:18]}  Qa8 {[%clk 0:00:04]} 21. Nc6 {[%clk 0:02:10]}  Re8 {[%clk 0:00:00]} 22. Nxe7+ {[%clk 0:02:10]} 1-0


[Site "https://www.chess.com"]

[Event "Titled Tuesday Blitz May 9 Early 2023"]
[White "Visakh N R"]
[Black "Agibileg, Uurtsaikh"]
[WhiteFideId "25012223"]
[BlackFideId "4901606"]
[WhiteElo "2466"]
[BlackElo "2353"]
[Result "1-0"]
[Round "08"]
[TimeControl "180+2"]
[Date "2023.05.09"]
[WhiteClock "0:02:11"]
[BlackClock "0:01:15"]

1. e4 {[%clk 0:03:00]}  c5 {[%clk 0:03:00]} 2. Nf3 {[%clk 0:03:01]}  e6 {[%clk 0:02:59]} 3. d4 {[%clk 0:02:59]}  cxd4 {[%clk 0:03:00]} 4. Nxd4 {[%clk 0:03:00]}  Nc6 {[%clk 0:03:00]} 5. Nc3 {[%clk 0:03:00]}  Qc7 {[%clk 0:03:01]} 6. Be3 {[%clk 0:02:57]}  a6 {[%clk 0:03:01]} 7. Nxc6 {[%clk 0:02:55]}  bxc6 {[%clk 0:03:01]} 8. Bd3 {[%clk 0:02:55]}  d5 {[%clk 0:03:01]} 9. O-O {[%clk 0:02:55]}  Bd6 {[%clk 0:02:58]} 10. f4 {[%clk 0:02:54]}  Ne7 {[%clk 0:02:58]} 11. e5 {[%clk 0:02:53]}  Bb4 {[%clk 0:02:58]} 12. Na4 {[%clk 0:02:54]}  O-O {[%clk 0:02:55]} 13. c3 {[%clk 0:02:53]}  Ba5 {[%clk 0:02:39]} 14. b4 {[%clk 0:02:51]}  d4 {[%clk 0:02:38]} 15. Bxd4 {[%clk 0:02:51]}  c5 {[%clk 0:02:38]} 16. Bxc5 {[%clk 0:02:50]}  Bd7 {[%clk 0:02:34]} 17. Bxe7 {[%clk 0:02:46]}  Bxa4 {[%clk 0:02:33]} 18. Qxa4 {[%clk 0:02:46]}  Bb6+ {[%clk 0:02:34]} 19. Bc5 {[%clk 0:02:46]}  Bxc5+ {[%clk 0:02:34]} 20. bxc5 {[%clk 0:02:46]}  Qxc5+ {[%clk 0:02:31]} 21. Qd4 {[%clk 0:02:46]}  Qc8 {[%clk 0:02:29]} 22. Rfd1 {[%clk 0:02:45]}  Rd8 {[%clk 0:02:25]} 23. Qe3 {[%clk 0:02:45]}  Qc7 {[%clk 0:02:09]} 24. Be4 {[%clk 0:02:44]}  Rac8 {[%clk 0:02:08]} 25. h4 {[%clk 0:02:42]}  h5 {[%clk 0:02:07]} 26. Kh2 {[%clk 0:02:41]}  g6 {[%clk 0:02:05]} 27. Rxd8+ {[%clk 0:02:40]}  Qxd8 {[%clk 0:02:05]} 28. Qg3 {[%clk 0:02:40]}  Qd2 {[%clk 0:01:58]} 29. Rb1 {[%clk 0:02:36]}  Qxc3 {[%clk 0:01:38]} 30. Qxc3 {[%clk 0:02:25]}  Rxc3 {[%clk 0:01:39]} 31. Rb4 {[%clk 0:02:23]}  Ra3 {[%clk 0:01:39]} 32. Rb2 {[%clk 0:02:22]}  Ra4 {[%clk 0:01:38]} 33. Re2 {[%clk 0:02:22]}  Kf8 {[%clk 0:01:37]} 34. g3 {[%clk 0:02:23]}  Ke7 {[%clk 0:01:36]} 35. Bc6 {[%clk 0:02:22]}  Ra3 {[%clk 0:01:32]} 36. Rd2 {[%clk 0:02:22]}  Kf8 {[%clk 0:01:32]} 37. Kg2 {[%clk 0:02:21]}  Rc3 {[%clk 0:01:31]} 38. Rd8+ {[%clk 0:02:19]}  Kg7 {[%clk 0:01:31]} 39. Be4 {[%clk 0:02:18]}  Re3 {[%clk 0:01:29]} 40. Bf3 {[%clk 0:02:15]}  a5 {[%clk 0:01:28]} 41. a4 {[%clk 0:02:13]}  Ra3 {[%clk 0:01:24]} 42. Bc6 {[%clk 0:02:12]}  Ra2+ {[%clk 0:01:21]} 43. Kh3 {[%clk 0:02:12]}  Ra3 {[%clk 0:01:15]} 44. Bb5 {[%clk 0:02:11]} 1-0


[Site "https://www.chess.com"]

[Event "Titled Tuesday Blitz May 9 Early 2023"]
[White "Klukin, Kirill"]
[Black "Erzhanov, Arman"]
[WhiteFideId "24199273"]
[BlackFideId "4138821"]
[WhiteElo "2344"]
[BlackElo "2138"]
[Result "1-0"]
[Round "08"]
[TimeControl "180+2"]
[Date "2023.05.09"]
[WhiteClock "0:01:28"]
[BlackClock "0:01:13"]

1. e4 {[%clk 0:02:56]}  d6 {[%clk 0:03:00]} 2. Nf3 {[%clk 0:02:56]}  Nf6 {[%clk 0:03:00]} 3. Nc3 {[%clk 0:02:55]}  e5 {[%clk 0:02:58]} 4. d4 {[%clk 0:02:55]}  Nbd7 {[%clk 0:02:58]} 5. Bc4 {[%clk 0:02:54]}  Be7 {[%clk 0:02:58]} 6. O-O {[%clk 0:02:51]}  O-O {[%clk 0:02:57]} 7. h3 {[%clk 0:02:49]}  c6 {[%clk 0:02:57]} 8. Be3 {[%clk 0:02:48]}  b5 {[%clk 0:02:56]} 9. dxe5 {[%clk 0:02:31]}  dxe5 {[%clk 0:02:55]} 10. Bd3 {[%clk 0:02:31]}  a6 {[%clk 0:02:52]} 11. Ne2 {[%clk 0:02:30]}  Qc7 {[%clk 0:02:50]} 12. c3 {[%clk 0:02:29]}  Nc5 {[%clk 0:02:46]} 13. Bc2 {[%clk 0:02:29]}  Rd8 {[%clk 0:02:46]} 14. Qc1 {[%clk 0:02:29]}  Nfxe4 {[%clk 0:02:39]} 15. b4 {[%clk 0:02:17]}  Nd3 {[%clk 0:02:37]} 16. Bxd3 {[%clk 0:02:17]}  Rxd3 {[%clk 0:02:37]} 17. Qc2 {[%clk 0:02:18]}  Rxe3 {[%clk 0:02:22]} 18. fxe3 {[%clk 0:02:19]}  Bf5 {[%clk 0:02:10]} 19. Nh4 {[%clk 0:02:10]}  Bxh4 {[%clk 0:02:07]} 20. Rxf5 {[%clk 0:02:09]}  Nd6 {[%clk 0:01:58]} 21. Rh5 {[%clk 0:02:07]}  g6 {[%clk 0:01:53]} 22. Rxh4 {[%clk 0:02:07]}  Nf5 {[%clk 0:01:51]} 23. Re4 {[%clk 0:02:03]}  Re8 {[%clk 0:01:50]} 24. Rf1 {[%clk 0:02:02]}  Qb6 {[%clk 0:01:50]} 25. Qc1 {[%clk 0:01:46]}  Nd6 {[%clk 0:01:42]} 26. Rh4 {[%clk 0:01:45]}  f5 {[%clk 0:01:42]} 27. Kh2 {[%clk 0:01:40]}  Qd8 {[%clk 0:01:30]} 28. Qe1 {[%clk 0:01:32]}  Ne4 {[%clk 0:01:28]} 29. Rxe4 {[%clk 0:01:32]}  fxe4 {[%clk 0:01:28]} 30. Ng3 {[%clk 0:01:30]}  Qd3 {[%clk 0:01:29]} 31. Qf2 {[%clk 0:01:30]}  Qd5 {[%clk 0:01:27]} 32. Nxe4 {[%clk 0:01:28]}  Rd8 {[%clk 0:01:21]} 33. Nf6+ {[%clk 0:01:27]}  Kh8 {[%clk 0:01:20]} 34. Nxd5 {[%clk 0:01:28]}  cxd5 {[%clk 0:01:13]} 35. Qf6+ {[%clk 0:01:28]} 1-0


[Site "https://www.chess.com"]

[Event "Titled Tuesday Blitz May 9 Early 2023"]
[White "Goffredo_Fofi"]
[Black "Rosen, Eric"]
[BlackFideId "2032562"]
[WhiteElo "2543"]
[BlackElo "2331"]
[Result "1-0"]
[Round "08"]
[TimeControl "180+2"]
[Date "2023.05.09"]
[WhiteClock "0:00:11"]
[BlackClock "0:00:00"]

1. d4 {[%clk 0:03:00]}  d5 {[%clk 0:02:59]} 2. Nf3 {[%clk 0:03:00]}  Nf6 {[%clk 0:02:59]} 3. Bf4 {[%clk 0:03:00]}  c5 {[%clk 0:02:59]} 4. e3 {[%clk 0:03:01]}  Nc6 {[%clk 0:02:59]} 5. Nbd2 {[%clk 0:03:01]}  e6 {[%clk 0:02:59]} 6. c3 {[%clk 0:03:01]}  cxd4 {[%clk 0:02:58]} 7. exd4 {[%clk 0:03:01]}  Nh5 {[%clk 0:02:58]} 8. Be3 {[%clk 0:02:55]}  Bd6 {[%clk 0:02:55]} 9. Ne5 {[%clk 0:02:55]}  g6 {[%clk 0:02:55]} 10. Be2 {[%clk 0:02:42]}  Ng7 {[%clk 0:02:50]} 11. Nd3 {[%clk 0:02:36]}  Nf5 {[%clk 0:02:43]} 12. Bf4 {[%clk 0:02:31]}  O-O {[%clk 0:02:40]} 13. Bxd6 {[%clk 0:02:28]}  Qxd6 {[%clk 0:02:34]} 14. h4 {[%clk 0:01:48]}  e5 {[%clk 0:02:09]} 15. dxe5 {[%clk 0:01:47]}  Nxe5 {[%clk 0:02:09]} 16. Nxe5 {[%clk 0:01:48]}  Qxe5 {[%clk 0:02:08]} 17. Nf3 {[%clk 0:01:46]}  Qe4 {[%clk 0:02:01]} 18. Kf1 {[%clk 0:01:40]}  Bd7 {[%clk 0:01:31]} 19. h5 {[%clk 0:01:28]}  a6 {[%clk 0:01:13]} 20. Kg1 {[%clk 0:01:22]}  Bb5 {[%clk 0:01:07]} 21. Bxb5 {[%clk 0:01:21]}  axb5 {[%clk 0:01:08]} 22. a3 {[%clk 0:01:22]}  Rfe8 {[%clk 0:01:03]} 23. Qd2 {[%clk 0:01:20]}  Qg4 {[%clk 0:00:49]} 24. hxg6 {[%clk 0:01:08]}  hxg6 {[%clk 0:00:47]} 25. Nd4 {[%clk 0:00:30]}  Nxd4 {[%clk 0:00:20]} 26. cxd4 {[%clk 0:00:31]}  Qf5 {[%clk 0:00:08]} 27. Qh6 {[%clk 0:00:29]}  Qf6 {[%clk 0:00:09]} 28. Qh7+ {[%clk 0:00:26]}  Kf8 {[%clk 0:00:09]} 29. Rd1 {[%clk 0:00:22]}  Qg7 {[%clk 0:00:08]} 30. Qh4 {[%clk 0:00:18]}  Rac8 {[%clk 0:00:03]} 31. Qg3 {[%clk 0:00:18]}  Rcd8 {[%clk 0:00:03]} 32. Qd3 {[%clk 0:00:17]}  Qf6 {[%clk 0:00:03]} 33. Qxb5 {[%clk 0:00:17]}  Re7 {[%clk 0:00:02]} 34. Qd3 {[%clk 0:00:16]}  Kg7 {[%clk 0:00:02]} 35. Rh3 {[%clk 0:00:15]}  Rh8 {[%clk 0:00:02]} 36. Rxh8 {[%clk 0:00:15]}  Kxh8 {[%clk 0:00:03]} 37. Qh3+ {[%clk 0:00:15]}  Kg7 {[%clk 0:00:03]} 38. Qg3 {[%clk 0:00:16]}  Re4 {[%clk 0:00:03]} 39. Qd3 {[%clk 0:00:15]}  Qe6 {[%clk 0:00:03]} 40. b4 {[%clk 0:00:14]}  Re2 {[%clk 0:00:03]} 41. g3 {[%clk 0:00:11]}  Ra2 {[%clk 0:00:03]} 42. Qf3 {[%clk 0:00:10]}  Qf6 {[%clk 0:00:02]} 43. Qe3 {[%clk 0:00:09]}  Qe6 {[%clk 0:00:01]} 44. Re1 {[%clk 0:00:09]}  Qxe3 {[%clk 0:00:01]} 45. Rxe3 {[%clk 0:00:10]}  Rd2 {[%clk 0:00:01]} 46. Re7 {[%clk 0:00:09]}  b5 {[%clk 0:00:01]} 47. Rb7 {[%clk 0:00:09]}  Rxd4 {[%clk 0:00:02]} 48. Rxb5 {[%clk 0:00:09]}  Rd1+ {[%clk 0:00:02]} 49. Kg2 {[%clk 0:00:09]}  Kf6 {[%clk 0:00:03]} 50. a4 {[%clk 0:00:09]}  Ke5 {[%clk 0:00:03]} 51. a5 {[%clk 0:00:09]}  Ra1 {[%clk 0:00:03]} 52. Kf3 {[%clk 0:00:08]}  Kd4 {[%clk 0:00:03]} 53. Rb7 {[%clk 0:00:08]}  f5 {[%clk 0:00:03]} 54. Rb6 {[%clk 0:00:08]}  Kc4 {[%clk 0:00:03]} 55. a6 {[%clk 0:00:07]}  d4 {[%clk 0:00:03]} 56. b5 {[%clk 0:00:07]}  d3 {[%clk 0:00:04]} 57. Rd6 {[%clk 0:00:05]}  Kxb5 {[%clk 0:00:04]} 58. Rxd3 {[%clk 0:00:05]}  Rxa6 {[%clk 0:00:05]} 59. Kf4 {[%clk 0:00:04]}  Kc4 {[%clk 0:00:05]} 60. Re3 {[%clk 0:00:05]}  Kd4 {[%clk 0:00:05]} 61. Kg5 {[%clk 0:00:05]}  Ra2 {[%clk 0:00:06]} 62. Rf3 {[%clk 0:00:05]}  Ra6 {[%clk 0:00:04]} 63. Re3 {[%clk 0:00:05]}  Ra2 {[%clk 0:00:04]} 64. Rf3 {[%clk 0:00:05]}  Ra6 {[%clk 0:00:05]} 65. Rf4+ {[%clk 0:00:06]}  Ke5 {[%clk 0:00:04]} 66. Rf3 {[%clk 0:00:06]}  Ke4 {[%clk 0:00:04]} 67. Re3+ {[%clk 0:00:07]}  Kd4 {[%clk 0:00:05]} 68. Re7 {[%clk 0:00:07]}  Ra2 {[%clk 0:00:05]} 69. f4 {[%clk 0:00:07]}  Ra3 {[%clk 0:00:05]} 70. Kxg6 {[%clk 0:00:07]}  Rxg3+ {[%clk 0:00:03]} 71. Kxf5 {[%clk 0:00:08]}  Kd5 {[%clk 0:00:03]} 72. Rd7+ {[%clk 0:00:08]}  Kc6 {[%clk 0:00:03]} 73. Rd1 {[%clk 0:00:09]}  Rg8 {[%clk 0:00:02]} 74. Ke5 {[%clk 0:00:09]}  Re8+ {[%clk 0:00:03]} 75. Kf6 {[%clk 0:00:09]}  Rf8+ {[%clk 0:00:03]} 76. Kg5 {[%clk 0:00:10]}  Rg8+ {[%clk 0:00:03]} 77. Kh5 {[%clk 0:00:10]}  Rh8+ {[%clk 0:00:04]} 78. Kg6 {[%clk 0:00:10]}  Rg8+ {[%clk 0:00:03]} 79. Kf7 {[%clk 0:00:10]}  Rg2 {[%clk 0:00:01]} 80. f5 {[%clk 0:00:10]}  Rf2 {[%clk 0:00:01]} 81. f6 {[%clk 0:00:11]}  Rg2 {[%clk 0:00:00]} 82. Kf8 {[%clk 0:00:11]} 1-0


[Site "https://www.chess.com"]

[Event "Titled Tuesday Blitz May 9 Early 2023"]
[White "Nguyen Hong Nhung"]
[Black "Manukyan, Sargis A."]
[WhiteFideId "12412201"]
[BlackFideId "13303970"]
[WhiteElo "1996"]
[BlackElo "2187"]
[Result "0-1"]
[Round "08"]
[TimeControl "180+2"]
[Date "2023.05.09"]
[WhiteClock "0:00:00"]
[BlackClock "0:01:45"]

1. e4 {[%clk 0:03:00]}  c5 {[%clk 0:03:00]} 2. Nc3 {[%clk 0:03:00]}  d6 {[%clk 0:03:00]} 3. f4 {[%clk 0:03:01]}  Nc6 {[%clk 0:03:01]} 4. Nf3 {[%clk 0:03:01]}  g6 {[%clk 0:03:02]} 5. Bc4 {[%clk 0:03:01]}  Bg7 {[%clk 0:03:02]} 6. O-O {[%clk 0:03:02]}  e6 {[%clk 0:03:03]} 7. d3 {[%clk 0:03:03]}  Nge7 {[%clk 0:03:04]} 8. Qe1 {[%clk 0:03:03]}  O-O {[%clk 0:03:05]} 9. f5 {[%clk 0:03:04]}  gxf5 {[%clk 0:03:05]} 10. Qh4 {[%clk 0:03:04]}  fxe4 {[%clk 0:03:06]} 11. Ng5 {[%clk 0:01:55]}  h6 {[%clk 0:03:06]} 12. Ncxe4 {[%clk 0:01:22]}  Nf5 {[%clk 0:02:55]} 13. Qh5 {[%clk 0:00:38]}  d5 {[%clk 0:02:50]} 14. g4 {[%clk 0:00:33]}  dxe4 {[%clk 0:02:28]} 15. gxf5 {[%clk 0:00:32]}  hxg5 {[%clk 0:02:26]} 16. Bxg5 {[%clk 0:00:26]}  Qd4+ {[%clk 0:02:20]} 17. Kh1 {[%clk 0:00:24]}  exf5 {[%clk 0:02:19]} 18. Rf4 {[%clk 0:00:21]}  Be6 {[%clk 0:02:08]} 19. Rh4 {[%clk 0:00:20]}  Rfe8 {[%clk 0:02:06]} 20. Qh7+ {[%clk 0:00:14]}  Kf8 {[%clk 0:02:06]} 21. Bh6 {[%clk 0:00:13]}  Bxh6 {[%clk 0:02:06]} 22. Qxh6+ {[%clk 0:00:12]}  Qg7 {[%clk 0:02:03]} 23. Qf4 {[%clk 0:00:12]}  Bxc4 {[%clk 0:02:02]} 24. Rg1 {[%clk 0:00:12]}  Qf6 {[%clk 0:01:54]} 25. Rh6 {[%clk 0:00:12]}  Qe5 {[%clk 0:01:50]} 26. Qg5 {[%clk 0:00:08]}  exd3 {[%clk 0:01:47]} 27. Qg8+ {[%clk 0:00:03]}  Ke7 {[%clk 0:01:46]} 28. Qg5+ {[%clk 0:00:00]}  Kd7 {[%clk 0:01:45]} 0-1


[Site "https://www.chess.com"]

[Event "Titled Tuesday Blitz May 9 Early 2023"]
[White "Guerra Tulcan, Lenin"]
[Black "Petrovic, Aleksa"]
[WhiteFideId "3601382"]
[BlackFideId "967629"]
[WhiteElo "2368"]
[BlackElo "2309"]
[Result "1-0"]
[Round "08"]
[TimeControl "180+2"]
[Date "2023.05.09"]
[WhiteClock "0:01:55"]
[BlackClock "0:01:31"]

1. e4 {[%clk 0:03:00]}  d5 {[%clk 0:02:59]} 2. exd5 {[%clk 0:03:00]}  Qxd5 {[%clk 0:03:00]} 3. d4 {[%clk 0:02:58]}  e5 {[%clk 0:02:58]} 4. Nf3 {[%clk 0:02:58]}  exd4 {[%clk 0:02:50]} 5. Qxd4 {[%clk 0:02:59]}  Qxd4 {[%clk 0:02:49]} 6. Nxd4 {[%clk 0:03:00]}  Bb4+ {[%clk 0:02:48]} 7. c3 {[%clk 0:02:59]}  Bc5 {[%clk 0:02:48]} 8. Nb5 {[%clk 0:02:56]}  Na6 {[%clk 0:02:40]} 9. Bf4 {[%clk 0:02:51]}  Bb6 {[%clk 0:02:25]} 10. N1a3 {[%clk 0:02:47]}  Bd7 {[%clk 0:02:24]} 11. Nc4 {[%clk 0:02:21]}  Bxb5 {[%clk 0:02:03]} 12. Nxb6 {[%clk 0:02:20]}  axb6 {[%clk 0:02:02]} 13. Bxb5+ {[%clk 0:02:19]}  c6 {[%clk 0:02:02]} 14. Bxa6 {[%clk 0:02:04]}  Rxa6 {[%clk 0:01:53]} 15. O-O-O {[%clk 0:02:03]}  Rxa2 {[%clk 0:01:44]} 16. Rhe1+ {[%clk 0:02:02]}  Ne7 {[%clk 0:01:37]} 17. Bd6 {[%clk 0:01:56]}  Ra1+ {[%clk 0:01:35]} 18. Kc2 {[%clk 0:01:56]}  Rxd1 {[%clk 0:01:31]} 19. Kxd1 {[%clk 0:01:55]} 1-0


[Site "https://www.chess.com"]